[Event "December 19 Late 2023"]
[Site "https://www.chess.com"]
[Date "2023.12.19"]
[Round "5"]
[White "De Souza, Cristiano Gomes"]
[Black "Chiquitita23"]
[Result "1-0"]
[Board "160"]
[TimeControl "180+1"]
[WhiteFideId "2151758"]
[WhiteElo "2068"]
[BlackElo "1931"]
[WhiteTeam "BRA"]
[WhiteClock "0:00:44"]
[BlackClock "0:00:00"]

1. d4 {[%clk 0:02:33]}  Nf6 {[%clk 0:02:59]} 2. c4 {[%clk 0:02:32]}  e6 {[%clk 0:02:58]} 3. Nf3 {[%clk 0:02:32]}  d5 {[%clk 0:02:58]} 4. Nc3 {[%clk 0:02:31]}  Be7 {[%clk 0:02:57]} 5. Bg5 {[%clk 0:02:24]}  h6 {[%clk 0:02:57]} 6. Bh4 {[%clk 0:02:24]}  dxc4 {[%clk 0:02:57]} 7. e3 {[%clk 0:02:23]}  c5 {[%clk 0:02:55]} 8. Bxc4 {[%clk 0:02:22]}  cxd4 {[%clk 0:02:53]} 9. Bb5+ {[%clk 0:02:21]}  Bd7 {[%clk 0:02:53]} 10. Nxd4 {[%clk 0:02:19]}  O-O {[%clk 0:02:46]} 11. O-O {[%clk 0:02:12]}  Bxb5 {[%clk 0:02:32]} 12. Ndxb5 {[%clk 0:02:11]}  Nc6 {[%clk 0:02:27]} 13. Qe2 {[%clk 0:02:08]}  Nd5 {[%clk 0:02:17]} 14. Bxe7 {[%clk 0:02:06]}  Qxe7 {[%clk 0:02:14]} 15. Nxd5 {[%clk 0:02:05]}  exd5 {[%clk 0:02:15]} 16. Rfd1 {[%clk 0:02:02]}  Rfd8 {[%clk 0:02:09]} 17. Nd4 {[%clk 0:02:01]}  Rac8 {[%clk 0:02:07]} 18. Rd2 {[%clk 0:01:55]}  Ne5 {[%clk 0:02:07]} 19. b3 {[%clk 0:01:54]}  a6 {[%clk 0:01:42]} 20. Rad1 {[%clk 0:01:51]}  b5 {[%clk 0:01:40]} 21. h3 {[%clk 0:01:43]}  Rc7 {[%clk 0:01:38]} 22. Nf5 {[%clk 0:01:41]}  Qe6 {[%clk 0:01:37]} 23. Ng3 {[%clk 0:01:38]}  Nc6 {[%clk 0:01:25]} 24. Qf3 {[%clk 0:01:37]}  Rcd7 {[%clk 0:01:05]} 25. Qf5 {[%clk 0:01:29]}  d4 {[%clk 0:01:00]} 26. Qxe6 {[%clk 0:01:25]}  fxe6 {[%clk 0:00:59]} 27. Ne4 {[%clk 0:01:17]}  dxe3 {[%clk 0:00:45]} 28. fxe3 {[%clk 0:01:10]}  Rxd2 {[%clk 0:00:34]} 29. Rxd2 {[%clk 0:01:09]}  Rxd2 {[%clk 0:00:32]} 30. Nxd2 {[%clk 0:01:08]}  Nb4 {[%clk 0:00:33]} 31. Ne4 {[%clk 0:01:06]}  Nxa2 {[%clk 0:00:31]} 32. Nc5 {[%clk 0:01:06]}  a5 {[%clk 0:00:27]} 33. Nxe6 {[%clk 0:01:05]}  Nc1 {[%clk 0:00:13]} 34. Nd4 {[%clk 0:01:04]}  a4 {[%clk 0:00:13]} 35. bxa4 {[%clk 0:01:04]}  bxa4 {[%clk 0:00:12]} 36. Nc2 {[%clk 0:01:01]}  Kf7 {[%clk 0:00:04]} 37. Kf2 {[%clk 0:01:00]}  Ke6 {[%clk 0:00:04]} 38. Ke1 {[%clk 0:01:00]}  Nd3+ {[%clk 0:00:04]} 39. Kd2 {[%clk 0:01:00]}  Nb2 {[%clk 0:00:02]} 40. Kc3 {[%clk 0:00:59]}  Nd1+ {[%clk 0:00:02]} 41. Kd2 {[%clk 0:00:58]}  Nb2 {[%clk 0:00:02]} 42. Na3 {[%clk 0:00:58]}  Kd5 {[%clk 0:00:01]} 43. Kc2 {[%clk 0:00:56]}  Nc4 {[%clk 0:00:01]} 44. Nxc4 {[%clk 0:00:45]}  Kxc4 {[%clk 0:00:00]} 45. e4 {[%clk 0:00:44]} 1-0

[Event "December 19 Late 2023"]
[Site "https://www.chess.com"]
[Date "2023.12.19"]
[Round "6"]
[White "Drygalov, Sergey"]
[Black "Bluebaum, Matthias"]
[Result "0-1"]
[Board "1"]
[TimeControl "180+1"]
[WhiteFideId "24171743"]
[BlackFideId "24651516"]
[WhiteElo "2504"]
[BlackElo "2621"]
[WhiteTeam "RUS"]
[BlackTeam "GER"]
[WhiteClock "0:00:07"]
[BlackClock "0:01:13"]

1. d4 {[%clk 0:02:59]}  d5 {[%clk 0:03:00]} 2. c4 {[%clk 0:03:00]}  e6 {[%clk 0:03:00]} 3. Nf3 {[%clk 0:03:01]}  Nf6 {[%clk 0:03:01]} 4. g3 {[%clk 0:03:02]}  Nc6 {[%clk 0:03:02]} 5. Bg2 {[%clk 0:03:01]}  Bd6 {[%clk 0:03:02]} 6. O-O {[%clk 0:03:01]}  O-O {[%clk 0:03:03]} 7. b3 {[%clk 0:02:58]}  dxc4 {[%clk 0:03:03]} 8. bxc4 {[%clk 0:02:58]}  e5 {[%clk 0:03:04]} 9. c5 {[%clk 0:02:59]}  Be7 {[%clk 0:03:04]} 10. dxe5 {[%clk 0:02:52]}  Qxd1 {[%clk 0:03:05]} 11. Rxd1 {[%clk 0:02:52]}  Ne4 {[%clk 0:03:06]} 12. Be3 {[%clk 0:02:37]}  Bxc5 {[%clk 0:03:04]} 13. Bxc5 {[%clk 0:02:32]}  Nxc5 {[%clk 0:03:05]} 14. Nc3 {[%clk 0:02:32]}  Be6 {[%clk 0:03:03]} 15. e3 {[%clk 0:02:30]}  Rad8 {[%clk 0:02:59]} 16. h3 {[%clk 0:01:50]}  h6 {[%clk 0:02:57]} 17. a3 {[%clk 0:01:36]}  Nd3 {[%clk 0:02:48]} 18. Nb5 {[%clk 0:01:33]}  Bb3 {[%clk 0:02:43]} 19. Rd2 {[%clk 0:01:22]}  Ndxe5 {[%clk 0:02:24]} 20. Rxd8 {[%clk 0:01:21]}  Nxf3+ {[%clk 0:02:24]} 21. Bxf3 {[%clk 0:01:22]}  Rxd8 {[%clk 0:02:25]} 22. Nxc7 {[%clk 0:01:23]}  Rd7 {[%clk 0:02:20]} 23. Nb5 {[%clk 0:01:20]}  Ne5 {[%clk 0:02:17]} 24. Bg2 {[%clk 0:01:18]}  a6 {[%clk 0:02:08]} 25. Nd4 {[%clk 0:01:18]}  Bd5 {[%clk 0:02:08]} 26. Rc1 {[%clk 0:01:12]}  Bxg2 {[%clk 0:02:06]} 27. Kxg2 {[%clk 0:01:13]}  b5 {[%clk 0:02:07]} 28. Rc8+ {[%clk 0:01:12]}  Kh7 {[%clk 0:02:07]} 29. Rc5 {[%clk 0:01:04]}  f6 {[%clk 0:01:59]} 30. h4 {[%clk 0:00:59]}  h5 {[%clk 0:01:54]} 31. Ne6 {[%clk 0:00:55]}  Rd6 {[%clk 0:01:34]} 32. Nf4 {[%clk 0:00:53]}  Rc6 {[%clk 0:01:33]} 33. Rd5 {[%clk 0:00:51]}  Rc2 {[%clk 0:01:30]} 34. Nxh5 {[%clk 0:00:46]}  Nc4 {[%clk 0:01:22]} 35. Kg1 {[%clk 0:00:38]}  Rc1+ {[%clk 0:01:22]} 36. Kg2 {[%clk 0:00:38]}  Rc2 {[%clk 0:01:23]} 37. Kg1 {[%clk 0:00:39]}  Nxa3 {[%clk 0:01:19]} 38. Rd7 {[%clk 0:00:38]}  b4 {[%clk 0:01:19]} 39. Nxg7 {[%clk 0:00:30]}  b3 {[%clk 0:01:13]} 40. Nf5+ {[%clk 0:00:30]}  Kg8 {[%clk 0:01:12]} 41. h5 {[%clk 0:00:08]}  b2 {[%clk 0:01:12]} 42. h6 {[%clk 0:00:06]}  b1=Q+ {[%clk 0:01:12]} 43. Kg2 {[%clk 0:00:07]}  Rxf2+ {[%clk 0:01:13]} 44. Kxf2 {[%clk 0:00:07]}  Qxf5+ {[%clk 0:01:13]} 0-1

[Event "December 19 Late 2023"]
[Site "https://www.chess.com"]
[Date "2023.12.19"]
[Round "6"]
[White "Sarana, Alexey"]
[Black "Dardha, Daniel"]
[Result "1-0"]
[Board "2"]
[TimeControl "180+1"]
[WhiteFideId "24133795"]
[BlackFideId "240990"]
[WhiteElo "2707"]
[BlackElo "2568"]
[WhiteTeam "SRB"]
[BlackTeam "BEL"]
[WhiteClock "0:00:10"]
[BlackClock "0:00:03"]

1. d4 {[%clk 0:03:00]}  d5 {[%clk 0:02:57]} 2. c4 {[%clk 0:03:01]}  dxc4 {[%clk 0:02:58]} 3. Nf3 {[%clk 0:03:01]}  Nf6 {[%clk 0:02:58]} 4. e3 {[%clk 0:03:01]}  e6 {[%clk 0:02:57]} 5. Bxc4 {[%clk 0:03:01]}  a6 {[%clk 0:02:57]} 6. O-O {[%clk 0:03:02]}  c5 {[%clk 0:02:58]} 7. Nc3 {[%clk 0:03:01]}  b5 {[%clk 0:02:56]} 8. Bb3 {[%clk 0:03:00]}  Bb7 {[%clk 0:02:55]} 9. e4 {[%clk 0:03:00]}  c4 {[%clk 0:02:52]} 10. Bc2 {[%clk 0:03:00]}  Be7 {[%clk 0:02:48]} 11. Qe2 {[%clk 0:02:53]}  b4 {[%clk 0:02:35]} 12. Na4 {[%clk 0:02:51]}  Nc6 {[%clk 0:02:09]} 13. Qxc4 {[%clk 0:02:42]}  O-O {[%clk 0:02:09]} 14. Rd1 {[%clk 0:02:38]}  Rc8 {[%clk 0:02:09]} 15. Qe2 {[%clk 0:02:39]}  Qa5 {[%clk 0:02:08]} 16. b3 {[%clk 0:02:36]}  Qh5 {[%clk 0:02:05]} 17. h3 {[%clk 0:02:34]}  Rfd8 {[%clk 0:02:04]} 18. Bb2 {[%clk 0:02:34]}  Na7 {[%clk 0:01:59]} 19. Rac1 {[%clk 0:02:07]}  Nb5 {[%clk 0:01:53]} 20. Bd3 {[%clk 0:02:03]}  Qh6 {[%clk 0:01:38]} 21. Rxc8 {[%clk 0:01:55]}  Rxc8 {[%clk 0:01:29]} 22. Nc5 {[%clk 0:01:55]}  Bxc5 {[%clk 0:01:22]} 23. dxc5 {[%clk 0:01:56]}  Nc3 {[%clk 0:01:06]} 24. Bxc3 {[%clk 0:01:56]}  bxc3 {[%clk 0:01:07]} 25. b4 {[%clk 0:01:45]}  a5 {[%clk 0:00:57]} 26. a3 {[%clk 0:01:30]}  axb4 {[%clk 0:00:57]} 27. axb4 {[%clk 0:01:31]}  Qf4 {[%clk 0:00:56]} 28. g3 {[%clk 0:01:31]}  Qb8 {[%clk 0:00:54]} 29. Qc2 {[%clk 0:01:15]}  Bxe4 {[%clk 0:00:31]} 30. Bxe4 {[%clk 0:01:15]}  Qxb4 {[%clk 0:00:31]} 31. Ng5 {[%clk 0:00:35]}  h6 {[%clk 0:00:06]} 32. Bh7+ {[%clk 0:00:35]}  Kf8 {[%clk 0:00:07]} 33. Nf3 {[%clk 0:00:25]}  Qxc5 {[%clk 0:00:06]} 34. Bd3 {[%clk 0:00:25]}  g5 {[%clk 0:00:06]} 35. Qe2 {[%clk 0:00:21]}  Kg7 {[%clk 0:00:07]} 36. Bc2 {[%clk 0:00:21]}  Qc4 {[%clk 0:00:04]} 37. Rd3 {[%clk 0:00:19]}  Qc5 {[%clk 0:00:04]} 38. Kg2 {[%clk 0:00:18]}  Nd5 {[%clk 0:00:04]} 39. Qe5+ {[%clk 0:00:18]}  Nf6 {[%clk 0:00:05]} 40. Qe1 {[%clk 0:00:15]}  Qc7 {[%clk 0:00:04]} 41. Ne5 {[%clk 0:00:15]}  Qb7+ {[%clk 0:00:04]} 42. Rf3 {[%clk 0:00:14]}  Qd5 {[%clk 0:00:03]} 43. Ng4 {[%clk 0:00:10]}  Nxg4 {[%clk 0:00:03]} 44. hxg4 {[%clk 0:00:11]}  Qc6 {[%clk 0:00:02]} 45. Qe5+ {[%clk 0:00:10]}  Kg8 {[%clk 0:00:02]} 46. Qf6 {[%clk 0:00:11]}  Rc7 {[%clk 0:00:02]} 47. Qxh6 {[%clk 0:00:10]}  Qd5 {[%clk 0:00:03]} 48. Bh7+ {[%clk 0:00:10]}  Kh8 {[%clk 0:00:03]} 49. Be4+ {[%clk 0:00:10]}  Kg8 {[%clk 0:00:03]} 50. Bxd5 {[%clk 0:00:10]} 1-0

[Event "December 19 Late 2023"]
[Site "https://www.chess.com"]
[Date "2023.12.19"]
[Round "6"]
[White "Lazavik, Denis"]
[Black "Tari, Aryan"]
[Result "1-0"]
[Board "4"]
[TimeControl "180+1"]
[WhiteFideId "13515110"]
[BlackFideId "1510045"]
[WhiteElo "2556"]
[BlackElo "2577"]
[WhiteTeam "BLR"]
[BlackTeam "NOR"]
[WhiteClock "0:00:06"]
[BlackClock "0:00:05"]

1. d4 {[%clk 0:03:00]}  d5 {[%clk 0:02:58]} 2. c4 {[%clk 0:03:01]}  e6 {[%clk 0:02:59]} 3. Nf3 {[%clk 0:03:02]}  Nf6 {[%clk 0:02:59]} 4. g3 {[%clk 0:03:03]}  dxc4 {[%clk 0:02:58]} 5. Bg2 {[%clk 0:03:03]}  c5 {[%clk 0:02:58]} 6. O-O {[%clk 0:03:00]}  Nc6 {[%clk 0:02:58]} 7. dxc5 {[%clk 0:03:00]}  Qxd1 {[%clk 0:02:59]} 8. Rxd1 {[%clk 0:03:00]}  Bxc5 {[%clk 0:02:59]} 9. Nbd2 {[%clk 0:03:00]}  c3 {[%clk 0:03:00]} 10. bxc3 {[%clk 0:03:01]}  O-O {[%clk 0:03:00]} 11. Nb3 {[%clk 0:03:01]}  Be7 {[%clk 0:03:00]} 12. c4 {[%clk 0:03:02]}  Bd7 {[%clk 0:03:00]} 13. Be3 {[%clk 0:03:02]}  Rfc8 {[%clk 0:02:55]} 14. Rac1 {[%clk 0:02:58]}  Be8 {[%clk 0:02:52]} 15. Nfd2 {[%clk 0:02:42]}  a5 {[%clk 0:02:26]} 16. h3 {[%clk 0:02:25]}  a4 {[%clk 0:02:21]} 17. Nc5 {[%clk 0:02:23]}  Rc7 {[%clk 0:01:58]} 18. Rb1 {[%clk 0:02:19]}  Rb8 {[%clk 0:01:20]} 19. Nxa4 {[%clk 0:02:12]}  Ra8 {[%clk 0:01:11]} 20. Nc3 {[%clk 0:02:09]}  Na5 {[%clk 0:01:06]} 21. Nb5 {[%clk 0:02:06]}  Rd7 {[%clk 0:01:05]} 22. Rdc1 {[%clk 0:01:44]}  Nc6 {[%clk 0:00:54]} 23. Rb2 {[%clk 0:01:34]}  Ra4 {[%clk 0:00:42]} 24. Nb3 {[%clk 0:01:31]}  Ne5 {[%clk 0:00:40]} 25. Rbc2 {[%clk 0:00:49]}  Rxc4 {[%clk 0:00:16]} 26. Rxc4 {[%clk 0:00:48]}  Nxc4 {[%clk 0:00:17]} 27. Rxc4 {[%clk 0:00:48]}  Rd1+ {[%clk 0:00:17]} 28. Kh2 {[%clk 0:00:48]}  Bxb5 {[%clk 0:00:18]} 29. Rc8+ {[%clk 0:00:38]}  Rd8 {[%clk 0:00:18]} 30. Rxd8+ {[%clk 0:00:38]}  Bxd8 {[%clk 0:00:19]} 31. Bxb7 {[%clk 0:00:39]}  Bxe2 {[%clk 0:00:20]} 32. Nd4 {[%clk 0:00:33]}  Bc4 {[%clk 0:00:18]} 33. a4 {[%clk 0:00:33]}  Nd5 {[%clk 0:00:18]} 34. Nc6 {[%clk 0:00:30]}  Bc7 {[%clk 0:00:12]} 35. Bd2 {[%clk 0:00:27]}  Bb6 {[%clk 0:00:10]} 36. Kg1 {[%clk 0:00:17]}  Nc7 {[%clk 0:00:07]} 37. Ba5 {[%clk 0:00:10]}  Bxa5 {[%clk 0:00:07]} 38. Nxa5 {[%clk 0:00:11]}  Bd3 {[%clk 0:00:06]} 39. Nb3 {[%clk 0:00:08]}  Ba6 {[%clk 0:00:03]} 40. Bxa6 {[%clk 0:00:03]}  Nxa6 {[%clk 0:00:04]} 41. Kf1 {[%clk 0:00:04]}  Kf8 {[%clk 0:00:05]} 42. Ke2 {[%clk 0:00:05]}  Ke7 {[%clk 0:00:06]} 43. Kd3 {[%clk 0:00:05]}  Kd6 {[%clk 0:00:06]} 44. Kc4 {[%clk 0:00:06]}  Kc6 {[%clk 0:00:07]} 45. a5 {[%clk 0:00:06]}  h5 {[%clk 0:00:05]} 46. Nd4+ {[%clk 0:00:06]}  Kb7 {[%clk 0:00:05]} 47. h4 {[%clk 0:00:07]}  g6 {[%clk 0:00:03]} 48. Nf3 {[%clk 0:00:07]}  f6 {[%clk 0:00:03]} 49. Nd4 {[%clk 0:00:07]}  Nc7 {[%clk 0:00:03]} 50. Kc5 {[%clk 0:00:07]}  e5 {[%clk 0:00:04]} 51. Nb5 {[%clk 0:00:06]}  Na6+ {[%clk 0:00:04]} 52. Kd6 {[%clk 0:00:06]}  Nb4 {[%clk 0:00:04]} 53. Ke6 {[%clk 0:00:06]}  e4 {[%clk 0:00:03]} 54. Kxf6 {[%clk 0:00:03]}  Nd3 {[%clk 0:00:04]} 55. Kxg6 {[%clk 0:00:04]}  Nxf2 {[%clk 0:00:04]} 56. Nc3 {[%clk 0:00:05]}  Ka6 {[%clk 0:00:04]} 57. Kxh5 {[%clk 0:00:05]}  Kxa5 {[%clk 0:00:04]} 58. Kg5 {[%clk 0:00:05]}  Kb4 {[%clk 0:00:05]} 59. Ne2 {[%clk 0:00:06]}  Kc5 {[%clk 0:00:05]} 60. h5 {[%clk 0:00:05]}  Kd6 {[%clk 0:00:05]} 61. h6 {[%clk 0:00:06]}  Ke7 {[%clk 0:00:05]} 62. h7 {[%clk 0:00:06]} 1-0

[Event "December 19 Late 2023"]
[Site "https://www.chess.com"]
[Date "2023.12.19"]
[Round "6"]
[White "Livaic, Leon"]
[Black "Niemann, Hans Moke"]
[Result "0-1"]
[Board "7"]
[TimeControl "180+1"]
[WhiteFideId "14531534"]
[BlackFideId "2093596"]
[WhiteElo "2541"]
[BlackElo "2614"]
[WhiteTeam "CRO"]
[BlackTeam "USA"]
[WhiteClock "0:00:08"]
[BlackClock "0:01:00"]

1. d4 {[%clk 0:03:00]}  Nf6 {[%clk 0:02:56]} 2. c4 {[%clk 0:03:01]}  e6 {[%clk 0:02:54]} 3. Nf3 {[%clk 0:03:01]}  d5 {[%clk 0:02:54]} 4. Nc3 {[%clk 0:03:01]}  c6 {[%clk 0:02:53]} 5. Bg5 {[%clk 0:03:01]}  h6 {[%clk 0:02:50]} 6. Bxf6 {[%clk 0:03:02]}  Qxf6 {[%clk 0:02:51]} 7. Qc2 {[%clk 0:03:02]}  g5 {[%clk 0:02:37]} 8. cxd5 {[%clk 0:03:02]}  exd5 {[%clk 0:02:35]} 9. Nxd5 {[%clk 0:03:02]}  Qd8 {[%clk 0:02:35]} 10. Nc3 {[%clk 0:02:58]}  g4 {[%clk 0:02:34]} 11. Qe4+ {[%clk 0:02:52]}  Be7 {[%clk 0:02:28]} 12. Ne5 {[%clk 0:02:50]}  f5 {[%clk 0:02:25]} 13. Qd3 {[%clk 0:02:48]}  Bf6 {[%clk 0:02:26]} 14. f4 {[%clk 0:02:25]}  gxf3 {[%clk 0:02:23]} 15. Nxf3 {[%clk 0:02:23]}  Be6 {[%clk 0:02:13]} 16. e4 {[%clk 0:02:18]}  O-O {[%clk 0:02:08]} 17. Be2 {[%clk 0:02:04]}  Bg7 {[%clk 0:02:00]} 18. O-O {[%clk 0:01:49]}  Nd7 {[%clk 0:02:00]} 19. exf5 {[%clk 0:01:38]}  Bxf5 {[%clk 0:01:59]} 20. Qd2 {[%clk 0:01:36]}  Kh8 {[%clk 0:01:56]} 21. Rad1 {[%clk 0:01:35]}  Qe7 {[%clk 0:01:43]} 22. Bd3 {[%clk 0:01:30]}  Bg4 {[%clk 0:01:43]} 23. Rde1 {[%clk 0:01:30]}  Qb4 {[%clk 0:01:40]} 24. Bb1 {[%clk 0:00:54]}  Bxf3 {[%clk 0:01:35]} 25. Qc2 {[%clk 0:00:54]}  Qxd4+ {[%clk 0:01:32]} 26. Kh1 {[%clk 0:00:48]}  Be4 {[%clk 0:01:16]} 27. Nxe4 {[%clk 0:00:49]}  Qxb2 {[%clk 0:01:12]} 28. Qd3 {[%clk 0:00:42]}  Ne5 {[%clk 0:01:09]} 29. Qh3 {[%clk 0:00:28]}  Rxf1+ {[%clk 0:01:05]} 30. Rxf1 {[%clk 0:00:28]}  Rf8 {[%clk 0:01:06]} 31. Rg1 {[%clk 0:00:20]}  Qe2 {[%clk 0:01:01]} 32. Ng3 {[%clk 0:00:08]}  Ng4 {[%clk 0:01:00]} 0-1

[Event "December 19 Late 2023"]
[Site "https://www.chess.com"]
[Date "2023.12.19"]
[Round "6"]
[White "Mikaelyan, Arman"]
[Black "Keymer, Vincent"]
[Result "0-1"]
[Board "9"]
[TimeControl "180+1"]
[WhiteFideId "13304852"]
[BlackFideId "12940690"]
[WhiteElo "2445"]
[BlackElo "2629"]
[WhiteTeam "ARM"]
[BlackTeam "GER"]
[WhiteClock "0:00:00"]
[BlackClock "0:00:14"]

1. d4 {[%clk 0:03:00]}  Nf6 {[%clk 0:02:55]} 2. c4 {[%clk 0:03:01]}  e6 {[%clk 0:02:55]} 3. Nf3 {[%clk 0:03:01]}  b6 {[%clk 0:02:55]} 4. g3 {[%clk 0:02:59]}  Ba6 {[%clk 0:02:54]} 5. b3 {[%clk 0:02:59]}  Bb4+ {[%clk 0:02:53]} 6. Bd2 {[%clk 0:02:59]}  Be7 {[%clk 0:02:53]} 7. Bg2 {[%clk 0:02:58]}  d5 {[%clk 0:02:53]} 8. cxd5 {[%clk 0:02:49]}  exd5 {[%clk 0:02:54]} 9. O-O {[%clk 0:02:48]}  O-O {[%clk 0:02:55]} 10. Nc3 {[%clk 0:02:47]}  Re8 {[%clk 0:02:55]} 11. a3 {[%clk 0:02:43]}  c5 {[%clk 0:02:52]} 12. Bg5 {[%clk 0:02:27]}  Nc6 {[%clk 0:02:24]} 13. dxc5 {[%clk 0:01:55]}  bxc5 {[%clk 0:02:19]} 14. Rc1 {[%clk 0:01:55]}  d4 {[%clk 0:01:32]} 15. Na4 {[%clk 0:01:54]}  Nd7 {[%clk 0:01:30]} 16. Bf4 {[%clk 0:00:51]}  Bb5 {[%clk 0:01:14]} 17. b4 {[%clk 0:00:46]}  Bf6 {[%clk 0:01:03]} 18. Re1 {[%clk 0:00:40]}  c4 {[%clk 0:01:03]} 19. Nd2 {[%clk 0:00:28]}  c3 {[%clk 0:00:50]} 20. Ne4 {[%clk 0:00:28]}  Rxe4 {[%clk 0:00:41]} 21. Bxe4 {[%clk 0:00:29]}  g5 {[%clk 0:00:41]} 22. Bd6 {[%clk 0:00:27]}  Nb6 {[%clk 0:00:37]} 23. Nxb6 {[%clk 0:00:27]}  axb6 {[%clk 0:00:38]} 24. a4 {[%clk 0:00:16]}  Bxa4 {[%clk 0:00:36]} 25. Qd3 {[%clk 0:00:15]}  Qxd6 {[%clk 0:00:35]} 26. Ra1 {[%clk 0:00:10]}  Nxb4 {[%clk 0:00:29]} 27. Qf3 {[%clk 0:00:08]}  Ra5 {[%clk 0:00:28]} 28. Qh5 {[%clk 0:00:08]}  Bc6 {[%clk 0:00:23]} 29. Qxh7+ {[%clk 0:00:06]}  Kf8 {[%clk 0:00:24]} 30. Qh6+ {[%clk 0:00:07]}  Ke7 {[%clk 0:00:24]} 31. Rxa5 {[%clk 0:00:07]}  bxa5 {[%clk 0:00:24]} 32. Bxc6 {[%clk 0:00:04]}  Qxc6 {[%clk 0:00:24]} 33. Qh7 {[%clk 0:00:03]}  c2 {[%clk 0:00:22]} 34. Rc1 {[%clk 0:00:03]}  a4 {[%clk 0:00:14]} 35. Qf5 {[%clk 0:00:04]}  a3 {[%clk 0:00:14]} 36. Qa5 {[%clk 0:00:04]}  Qc3 {[%clk 0:00:13]} 37. Qa7+ {[%clk 0:00:04]}  Kf8 {[%clk 0:00:14]} 38. h3 {[%clk 0:00:02]}  Kg7 {[%clk 0:00:14]} 39. Qb6 {[%clk 0:00:01]}  a2 {[%clk 0:00:14]} 40. Qa5 {[%clk 0:00:02]}  Qd2 {[%clk 0:00:14]} 41. Ra1 {[%clk 0:00:00]}  c1=Q+ {[%clk 0:00:14]} 0-1

[Event "December 19 Late 2023"]
[Site "https://www.chess.com"]
[Date "2023.12.19"]
[Round "6"]
[White "Paravyan, David"]
[Black "Bryakin, Mikhail"]
[Result "1/2-1/2"]
[Board "10"]
[TimeControl "180+1"]
[WhiteFideId "4194985"]
[BlackFideId "4165314"]
[WhiteElo "2566"]
[BlackElo "2495"]
[WhiteTeam "FID"]
[BlackTeam "SRB"]
[WhiteClock "0:00:06"]
[BlackClock "0:00:07"]

1. e4 {[%clk 0:03:00]}  c6 {[%clk 0:02:59]} 2. d4 {[%clk 0:03:00]}  d5 {[%clk 0:03:00]} 3. Nd2 {[%clk 0:02:59]}  dxe4 {[%clk 0:03:00]} 4. Nxe4 {[%clk 0:03:00]}  Bf5 {[%clk 0:03:01]} 5. Ng3 {[%clk 0:02:58]}  Bg6 {[%clk 0:03:01]} 6. Nf3 {[%clk 0:02:57]}  Nd7 {[%clk 0:03:01]} 7. Bd3 {[%clk 0:02:57]}  Ngf6 {[%clk 0:03:01]} 8. Bxg6 {[%clk 0:02:56]}  hxg6 {[%clk 0:03:02]} 9. Qe2 {[%clk 0:02:57]}  e6 {[%clk 0:03:02]} 10. O-O {[%clk 0:02:54]}  Bd6 {[%clk 0:02:59]} 11. c4 {[%clk 0:02:51]}  Bxg3 {[%clk 0:02:50]} 12. fxg3 {[%clk 0:02:48]}  Qa5 {[%clk 0:02:50]} 13. Bf4 {[%clk 0:02:46]}  O-O {[%clk 0:02:43]} 14. Bd6 {[%clk 0:02:38]}  Rfe8 {[%clk 0:02:43]} 15. Ne5 {[%clk 0:02:24]}  Nxe5 {[%clk 0:02:35]} 16. dxe5 {[%clk 0:02:24]}  Nd7 {[%clk 0:02:34]} 17. h4 {[%clk 0:02:19]}  f5 {[%clk 0:02:23]} 18. Qe3 {[%clk 0:02:12]}  Nf8 {[%clk 0:02:16]} 19. Qg5 {[%clk 0:02:10]}  Qd8 {[%clk 0:02:15]} 20. Qe3 {[%clk 0:01:57]}  Qb6 {[%clk 0:02:03]} 21. c5 {[%clk 0:01:57]}  Qb4 {[%clk 0:01:45]} 22. a3 {[%clk 0:01:48]}  Qa4 {[%clk 0:01:38]} 23. Rf4 {[%clk 0:01:46]}  Qa6 {[%clk 0:01:28]} 24. g4 {[%clk 0:01:45]}  Nh7 {[%clk 0:01:26]} 25. Raf1 {[%clk 0:01:43]}  b6 {[%clk 0:01:09]} 26. gxf5 {[%clk 0:01:34]}  gxf5 {[%clk 0:01:10]} 27. g4 {[%clk 0:01:34]}  g6 {[%clk 0:01:10]} 28. R4f2 {[%clk 0:01:21]}  Qb7 {[%clk 0:01:07]} 29. Rg2 {[%clk 0:01:18]}  Kh8 {[%clk 0:01:07]} 30. Qh6 {[%clk 0:01:17]}  Qf7 {[%clk 0:00:36]} 31. Kh2 {[%clk 0:01:15]}  Rg8 {[%clk 0:00:33]} 32. Qe3 {[%clk 0:01:06]}  b5 {[%clk 0:00:33]} 33. Rf3 {[%clk 0:01:03]}  Rg7 {[%clk 0:00:32]} 34. h5 {[%clk 0:00:51]}  gxh5 {[%clk 0:00:27]} 35. gxf5 {[%clk 0:00:51]}  Rxg2+ {[%clk 0:00:27]} 36. Kxg2 {[%clk 0:00:52]}  Rg8+ {[%clk 0:00:27]} 37. Kh2 {[%clk 0:00:49]}  Qg7 {[%clk 0:00:25]} 38. Rg3 {[%clk 0:00:44]}  Qxg3+ {[%clk 0:00:18]} 39. Qxg3 {[%clk 0:00:45]}  Rxg3 {[%clk 0:00:18]} 40. Kxg3 {[%clk 0:00:45]}  Kg7 {[%clk 0:00:10]} 41. fxe6 {[%clk 0:00:45]}  Ng5 {[%clk 0:00:11]} 42. e7 {[%clk 0:00:46]}  Kf7 {[%clk 0:00:11]} 43. Kh4 {[%clk 0:00:47]}  Ne4 {[%clk 0:00:06]} 44. Kxh5 {[%clk 0:00:46]}  Nd2 {[%clk 0:00:05]} 45. Kg5 {[%clk 0:00:16]}  Nc4 {[%clk 0:00:06]} 46. b3 {[%clk 0:00:16]}  Nxa3 {[%clk 0:00:05]} 47. e6+ {[%clk 0:00:11]}  Ke8 {[%clk 0:00:05]} 48. Kf6 {[%clk 0:00:11]}  a5 {[%clk 0:00:05]} 49. Ke5 {[%clk 0:00:08]}  a4 {[%clk 0:00:05]} 50. bxa4 {[%clk 0:00:07]}  bxa4 {[%clk 0:00:06]} 51. Kd4 {[%clk 0:00:07]}  Nb5+ {[%clk 0:00:05]} 52. Kc4 {[%clk 0:00:07]}  a3 {[%clk 0:00:03]} 53. Kb3 {[%clk 0:00:07]}  Nd4+ {[%clk 0:00:03]} 54. Kxa3 {[%clk 0:00:08]}  Nxe6 {[%clk 0:00:03]} 55. Kb4 {[%clk 0:00:08]}  Kd7 {[%clk 0:00:04]} 56. Ka5 {[%clk 0:00:09]}  Ng7 {[%clk 0:00:03]} 57. Kb6 {[%clk 0:00:09]}  Ne8 {[%clk 0:00:03]} 58. Kb7 {[%clk 0:00:09]}  Nf6 {[%clk 0:00:03]} 59. Bg3 {[%clk 0:00:08]}  Ne4 {[%clk 0:00:04]} 60. Bd6 {[%clk 0:00:07]}  Nf6 {[%clk 0:00:03]} 61. Bf4 {[%clk 0:00:06]}  Ne4 {[%clk 0:00:03]} 62. Be3 {[%clk 0:00:03]}  Kxe7 {[%clk 0:00:02]} 63. Kxc6 {[%clk 0:00:03]}  Kd8 {[%clk 0:00:03]} 64. Kd5 {[%clk 0:00:04]}  Nc3+ {[%clk 0:00:03]} 65. Kc4 {[%clk 0:00:04]}  Ne4 {[%clk 0:00:04]} 66. c6 {[%clk 0:00:04]}  Kc7 {[%clk 0:00:04]} 67. Kd5 {[%clk 0:00:03]}  Nf6+ {[%clk 0:00:05]} 68. Kc5 {[%clk 0:00:04]}  Ne4+ {[%clk 0:00:05]} 69. Kb5 {[%clk 0:00:04]}  Nd6+ {[%clk 0:00:06]} 70. Kc5 {[%clk 0:00:04]}  Ne4+ {[%clk 0:00:06]} 71. Kb5 {[%clk 0:00:05]}  Nd6+ {[%clk 0:00:06]} 72. Kc5 {[%clk 0:00:06]}  Ne4+ {[%clk 0:00:07]} 1/2-1/2